bitfinex-derivatives/quotes_SOLF0:USTF0_20250329
["timestamp","ask_amount","ask_price","bid_price","bid_amount"]
[1743228613583,2.1394,126.95,126.91,7.8822]
[1743228613779,2.1394,126.95,126.92,28.92]
[1743228614177,2.19022173,126.95,126.92,28.9724569]
[1743228614772,10.07042173,126.95,126.92,28.9724569]
[1743228614984,11.74604988,126.95,126.92,28.9724569]
[1743228616785,11.74604988,126.95,126.92,36.8540569]
[1743228618085,11.74604988,126.95,126.93,7.8812]
[1743228620780,19.62614988,126.95,126.92,28.9724569]
[1743228621085,11.74604988,126.95,126.92,28.9724569]
[1743228621281,17.43712815,126.93,126.92,0.0524569]
[1743228621487,9.55582815,126.93,126.9,32.83415498]
[1743228621677,9.55582815,126.91,126.9,32.83415498]
[1743228622786,17.43832815,126.91,126.9,32.83415498]
[1743228622986,17.43832815,126.91,126.9,22.93445498]
[1743228623783,17.43832815,126.91,126.9,19.63455498]
[1743228623989,7.8836,126.9,126.88,28.86]
[1743228625093,0.05131693,126.92,126.88,28.86]
[1743228625284,0.05131693,126.92,126.88,38.41582815]
[1743228625686,0.05131693,126.92,126.91,7.8825]
[1743228625889,0.05131693,126.92,126.91,36.7425]
[1743228631005,31.7,126.99,126.95,7.88]
[1743228631205,4.64302777,126.98,126.96,28.82]
[1743228631407,7.878,126.99,126.96,28.82]
[1743228631606,4.64178631,126.98,126.96,28.82]
[1743228631802,2.1403,127.0,126.96,28.82]
[1743228632006,4.64200791,126.99,126.96,28.82]
[1743228632308,0.05175197,126.99,126.97,0.05131693]
[1743228633611,0.05175197,126.99,126.98,7.8782]
[1743228639418,0.05175197,126.99,126.98,22.80503601]
[1743228639713,14.26,127.02,127.01,7.8763]
[1743228639919,14.26,127.02,127.01,36.6163]
[1743228640214,2.1902,127.05,127.01,28.74]
[1743228640415,7.8729,127.07,127.02,7.8752]
[1743228640608,7.8729,127.07,127.01,28.74]
[1743228640809,0.05827084,127.06,127.03,0.05107176]
[1743228641114,0.05827084,127.06,127.04,28.74]
[1743228642609,0.05827084,127.06,127.05,7.8739]
[1743228642809,0.05827084,127.06,127.04,28.74]
[1743228643212,7.8739,127.05,127.04,28.74]
[1743228643411,2.10927084,127.06,127.04,28.74]
[1743228643917,9.98287084,127.06,127.04,28.74]
[1743228648814,7.93187084,127.06,127.04,28.74]
[1743228649920,7.8739,127.05,127.04,28.74]
[1743228652713,7.8745,127.04,127.03,0.05107176]
[1743228657127,7.874,127.05,127.03,0.05107176]
[1743228657323,36.28827084,127.06,127.04,28.74]
[1743228657828,36.28827084,127.06,127.04,36.6144]
[1743228658218,36.28827084,127.06,127.04,28.74]
[1743228658716,36.28827084,127.06,127.04,36.6142]
[1743228659526,36.28827084,127.06,127.04,28.74]
[1743228660429,44.16187084,127.06,127.04,28.74]
[1743228661525,7.8739,127.05,127.04,28.74]
[1743228661727,36.28827084,127.06,127.04,28.74]
[1743228663126,36.28827084,127.06,127.04,36.614]
[1743228663627,36.28827084,127.06,127.04,28.74]
[1743228664521,36.28827084,127.06,127.03,0.05107176]
[1743228665328,36.28827084,127.06,127.03,7.92617176]
[1743228665530,36.28827084,127.06,127.03,0.05107176]
[1743228665929,44.16207084,127.06,127.03,0.05107176]
[1743228666329,36.28827084,127.06,127.03,0.05107176]
[1743228666724,7.8745,127.04,127.03,0.05107176]
[1743228667332,7.8741,127.05,127.03,0.05107176]
[1743228667927,7.8745,127.04,127.03,0.05107176]
[1743228670326,7.8742,127.05,127.03,0.05107176]
[1743228670934,7.8745,127.04,127.03,0.05107176]
[1743228672223,7.8745,127.04,127.03,28.75107176]
[1743228673022,51.21510685,127.06,126.97,3.40052822]
[1743228673228,7.878,126.99,126.98,28.7]
[1743228673923,7.8782,126.98,126.97,32.57114658]
[1743228674331,7.8782,126.98,126.97,61.27114658]
[1743228676327,7.8782,126.98,126.97,28.68]
[1743228677634,7.93039375,126.99,126.97,28.68]
[1743228681032,7.93039375,126.99,126.97,38.22649287]
[1743228681530,0.05259375,126.99,126.97,46.10519287]
[1743228681735,0.05259375,126.99,126.97,38.22649287]
[1743228682342,7.93019375,126.99,126.97,38.22649287]
[1743228683837,7.8782,126.98,126.97,38.22649287]
[1743228684042,7.8782,126.98,126.97,28.68]
[1743228685840,7.93039375,126.99,126.97,28.68]
[1743228686542,0.05259375,126.99,126.97,38.22649287]
[1743228686747,0.05259375,126.99,126.97,46.10519287]
[1743228687250,0.05259375,126.99,126.98,7.8782]
[1743228692558,20.89,127.01,126.99,7.877]
[1743228692850,20.89,127.01,127.0,38.06649287]
[1743228693656,20.76,127.01,127.0,38.06649287]
[1743228693857,20.76,127.01,127.0,45.94349287]
[1743228694958,0.05739488,127.02,127.0,45.94349287]
[1743228695267,0.05739488,127.02,127.01,7.8763]
[1743228695466,0.05739488,127.02,127.0,38.06649287]
[1743228696467,0.05739488,127.02,127.0,45.94309287]
[1743228697867,0.05739488,127.02,127.0,38.06649287]
[1743228698066,0.05739488,127.02,127.0,28.52]
[1743228698262,7.8763,127.01,127.0,28.48]
[1743228698662,7.8763,127.01,126.99,0.05623973]
[1743228698868,7.8763,127.01,127.0,28.48]
[1743228700369,7.93339488,127.02,126.99,0.05623973]
[1743228700573,7.93339488,127.02,127.0,28.46]
[1743228701269,7.8763,127.01,127.0,28.46]
[1743228701568,0.05739488,127.02,126.99,0.05623973]
[1743228701764,17.42349287,127.0,126.99,0.05623973]
[1743228701970,17.42349287,127.0,126.96,28.46]
[1743228701971,14.18855086,127.0,126.96,28.46]
[1743228702164,9.54649287,126.98,126.94,379.84889319]
[1743228702565,7.8801,126.95,126.94,120.12889319]
[1743228702766,9.54649287,126.96,126.93,131.37559232]
[1743228702964,9.54649287,126.94,126.93,0.04835116]
[1743228703166,14.18512424,126.94,126.93,0.04835116]
[1743228703360,9.54649287,126.94,126.93,0.04835116]
[1743228703565,17.42719287,126.94,126.93,0.04835116]
[1743228703967,14.12,126.95,126.93,0.04835116]
[1743228704166,22.0005,126.95,126.93,0.04835116]
[1743228704771,7.8807,126.94,126.93,0.04835116]
[1743228710975,4.62518922,126.94,126.89,28.38]
[1743228711174,14.93003234,126.94,126.89,28.38]
[1743228711576,7.8834,126.9,126.89,28.38]
[1743228713380,7.8838,126.89,126.88,259.78]
[1743228713778,7.8838,126.89,126.88,288.14]
[1743228713978,7.8834,126.9,126.88,288.14]
[1743228715673,0.05674279,126.91,126.88,288.14]
[1743228716883,0.05674279,126.91,126.89,7.8834]
[1743228717386,0.05674279,126.91,126.88,288.14]
[1743228717587,0.16674279,126.91,126.88,288.14]
[1743228718787,0.16674279,126.91,126.9,7.8832]
[1743228721099,0.16674279,126.91,126.89,22.81353234]
[1743228721792,0.16674279,126.91,126.9,7.8832]
[1743228722596,14.12,126.95,126.93,7.8807]
[1743228722894,7.8764,127.01,126.94,43.31003234]
[1743228723087,63.72,127.03,126.97,7.8784]
[1743228723289,63.72,127.03,126.98,28.38]
[1743228723492,19.54653917,127.02,126.96,28.4]
[1743228723688,0.0592988,127.0,126.96,28.4]
[1743228723885,0.0592988,127.0,126.98,0.05674279]
[1743228724893,7.8782,126.99,126.98,0.05674279]
[1743228726190,7.9364988,127.0,126.98,0.05674279]
[1743228726490,0.0592988,127.0,126.98,0.05674279]
[1743228727295,0.0592988,127.0,126.98,7.93484279]
[1743228727495,0.0592988,127.0,126.98,0.05674279]
[1743228727698,24.0492988,127.0,126.98,0.05674279]
[1743228728390,33.59657183,127.0,126.98,0.05674279]
[1743228729694,24.0492988,127.0,126.98,0.05674279]
[1743228729996,31.9265988,127.0,126.98,0.05674279]
[1743228730498,24.0492988,127.0,126.99,28.36]
[1743228731593,31.9262988,127.0,126.99,28.36]
[1743228731992,33.59657183,127.0,126.98,0.05674279]
[1743228732196,17.42487303,126.99,126.98,0.05674279]
[1743228732894,7.8776,126.99,126.98,0.05674279]
[1743228739199,7.8776,126.99,126.98,4.279e-05]
[1743228741001,12.50169391,126.99,126.98,4.279e-05]
[1743228742502,7.8776,126.99,126.98,4.279e-05]
[1743228742709,12.50525553,126.99,126.98,4.279e-05]
[1743228744909,7.8776,126.99,126.98,4.279e-05]
[1743228758411,17.42659488,126.99,126.98,4.279e-05]
[1743228758617,7.8807,126.94,126.93,364.0]
[1743228758819,9.54899488,126.95,126.94,28.24]
[1743228759317,17.42909488,126.95,126.94,28.24]
[1743228760719,7.8813,126.93,126.91,11.60109488]
[1743228760914,7.8813,126.93,126.92,288.12]
[1743228762013,36.68899488,126.94,126.92,28.28]
[1743228762818,7.8813,126.93,126.92,28.28]
[1743228763022,12.51673169,126.93,126.92,28.28]
[1743228763215,7.8813,126.93,126.92,28.28]
[1743228763415,12.51672916,126.93,126.92,28.28]
[1743228764117,7.8832,126.9,126.89,2.4573]
[1743228764325,9.54899488,126.92,126.89,28.28]
[1743228764619,0.05954451,126.91,126.89,28.28]
[1743228765120,7.8832,126.9,126.89,28.28]
[1743228770526,7.94234451,126.91,126.89,28.28]
[1743228770729,0.05954451,126.91,126.9,9.54899488]
[1743228771129,7.8816,126.93,126.9,9.54899488]
[1743228771527,27.14,126.94,126.9,9.54899488]
[1743228772231,7.882,126.92,126.91,0.05954451]
[1743228775226,7.9384523,126.93,126.91,0.05954451]
[1743228775533,7.9384523,126.93,126.92,28.2]
[1743228777227,17.48744718,126.93,126.92,28.2]
[1743228777428,7.8819,126.92,126.91,0.05954451]
[1743228783131,12.51180692,126.92,126.91,4.451e-05]
[1743228783536,20.39180692,126.92,126.91,4.451e-05]
[1743228783743,7.8844,126.88,126.87,1.5764168]
[1743228784235,7.8869,126.84,126.83,9.54899488]
[1743228784433,7.8869,126.84,126.83,28.28]
[1743228784634,9.54899488,126.87,126.82,2.5226]
[1743228784833,0.05691513,126.85,126.81,373.54899488]
[1743228785027,9.60591001,126.85,126.82,28.3]
[1743228785229,7.8875,126.83,126.82,28.3]
[1743228785933,9.60591001,126.85,126.81,364.0]
[1743228786835,9.54899488,126.83,126.79,9.54899488]
[1743228787042,7.8891,126.81,126.79,28.3]
[1743228788130,0.05763942,126.82,126.76,32.70244988]
[1743228788337,9.54899488,126.81,126.76,32.70244988]
[1743228788738,7.8908,126.78,126.76,32.70244988]
[1743228789040,7.8908,126.78,126.76,61.14244988]
[1743228789238,0.05693811,126.78,126.76,61.14244988]
[1743228789445,0.05693811,126.78,126.77,9.54899488]
[1743228789639,0.05693811,126.78,126.77,17.44019488]
[1743228790240,0.05693811,126.78,126.76,61.14244988]
[1743228790835,0.05693811,126.78,126.77,7.8912]
[1743228791748,0.05693811,126.78,126.76,69.03404988]
[1743228791949,0.05693811,126.78,126.76,28.44]
[1743228793046,0.05693811,126.78,126.76,36.3315]
[1743228793948,0.05693811,126.78,126.77,7.8912]
[1743228794144,14.96377355,126.84,126.76,28.44]
[1743228794340,20.04737355,126.86,126.77,2.5905]
[1743228794947,7.8879,126.83,126.79,7.8898]
[1743228795149,7.8879,126.83,126.8,28.46]
[1743228795444,0.0590392,126.82,126.8,28.51693811]
[1743228795850,7.9472392,126.82,126.8,28.51693811]
[1743228796653,7.8888,126.81,126.8,28.51693811]
[1743228796848,7.8888,126.81,126.8,0.05693811]
[1743228797853,431.66,126.8,126.64,131.37559232]
[1743228798148,14.96377355,126.66,126.64,131.37559232]
[1743228798448,22.86127355,126.68,126.65,131.37559232]
[1743228798644,14.96377355,126.7,126.65,131.37559232]
[1743228798845,14.96377355,126.7,126.66,29.52]
[1743228799053,0.0543346,126.69,126.66,29.52]
[1743228799442,14.96377355,126.68,126.66,29.52]
[1743228800045,0.0543346,126.69,126.66,29.52]
[1743228802645,27.02,126.68,126.66,29.52]
[1743228802844,27.02,126.68,126.65,2.5001]
[1743228803049,27.02,126.68,126.59,14.96377355]
[1743228803050,41.98377355,126.68,126.62,29.6]
[1743228803254,7.8981,126.66,126.62,29.6]
[1743228803445,7.95579414,126.66,126.62,29.6]
[1743228804149,15.02146769,126.66,126.57,1.37405484]
[1743228804452,31.57,126.67,126.57,29.74]
[1743228804654,0.05025312,126.63,126.58,2.3888]
[1743228805054,15.01402667,126.63,126.58,2.3888]
[1743228805748,15.01402667,126.63,126.57,29.74]
[1743228805949,7.9017,126.61,126.57,29.74]
[1743228806147,14.96377355,126.63,126.57,29.74]
[1743228806454,0.0510488,126.6,126.57,29.74]
[1743228807156,0.0510488,126.6,126.57,37.6436]
[1743228807351,14.96377355,126.65,126.57,29.74]
[1743228807652,7.9002,126.63,126.57,29.74]
[1743228808052,14.96377355,126.65,126.57,29.74]
[1743228808450,0.05679919,126.62,126.6,0.0510488]
[1743228808751,7.95779919,126.62,126.6,0.0510488]
[1743228808957,7.95779919,126.62,126.6,29.9310488]
[1743228809553,7.9012,126.61,126.6,0.0510488]
[1743228813360,0.05679919,126.62,126.6,0.0510488]
[1743228815452,0.05679919,126.62,126.59,29.84]
[1743228815858,0.05679919,126.62,126.6,7.9014]
[1743228816058,0.05679919,126.62,126.59,29.84]
[1743228817263,0.05679919,126.62,126.6,7.9018]
[1743228817459,0.05679919,126.62,126.59,29.84]
[1743228817859,0.05679919,126.62,126.59,37.742]
[1743228818264,0.05679919,126.62,126.59,29.84]
[1743228818664,0.05679919,126.62,126.59,44.80377355]
[1743228819257,0.05679919,126.62,126.61,7.9012]
[1743228821564,0.05679919,126.62,126.6,7.9018]
[1743228822160,0.05679919,126.62,126.61,7.9012]
[1743228822564,7.8988,126.65,126.61,7.9012]
[1743228822770,31.57,126.67,126.62,29.82]
[1743228822971,31.57,126.67,126.63,14.96377355]
[1743228823768,0.05812828,126.66,126.64,0.05679919]
[1743228823968,0.05812828,126.66,126.65,29.9]
[1743228824364,0.05812828,126.66,126.65,37.7983]
[1743228824964,31.57,126.67,126.66,7.8981]
[1743228826559,31.57,126.67,126.65,37.7986]
[1743228826765,31.57,126.67,126.65,29.9]
[1743228827167,31.57,126.67,126.66,7.8981]
[1743228828269,27.0711492,126.68,126.66,7.8981]
[1743228828465,27.0711492,126.68,126.65,37.7984]
[1743228828766,27.0711492,126.68,126.65,29.9]
[1743228829269,27.0711492,126.68,126.65,37.7982]
[1743228829775,27.0711492,126.68,126.65,29.9]
[1743228830272,27.0711492,126.68,126.66,2.735]
[1743228830765,27.0711492,126.68,126.67,7.8975]
[1743228831680,27.0711492,126.68,126.66,10.6328]
[1743228833074,27.0711492,126.68,126.66,2.735]
[1743228833475,58.1211492,126.68,126.66,2.735]
[1743228833676,58.1211492,126.68,126.67,29.72]
[1743228834476,58.1211492,126.68,126.67,29.7]
[1743228838583,58.1211492,126.68,126.66,2.735]
[1743228838776,58.1211492,126.68,126.67,29.62]
[1743228840876,58.1211492,126.68,126.67,37.5175]
[1743228841777,58.81344361,126.76,126.69,7.8962]
[1743228841980,4.60187606,126.75,126.7,29.56]
[1743228842181,4.60187606,126.74,126.7,29.56]
[1743228842386,58.81344361,126.76,126.7,29.56]
[1743228842579,4.60776908,126.75,126.7,29.56]
[1743228842883,58.81344361,126.76,126.71,0.05855153]
[1743228842884,0.05246385,126.74,126.71,0.05855153]
[1743228843272,0.05246385,126.74,126.71,7.95315153]
[1743228843273,7.94596385,126.74,126.71,7.95315153]
[1743228843585,0.05246385,126.74,126.73,14.96377355]
[1743228843782,43.32077006,126.76,126.72,2.6182]
[1743228843988,43.32077006,126.76,126.71,29.69855153]
[1743228844186,43.32077006,126.76,126.71,44.66232508]
[1743228844381,43.32077006,126.79,126.71,44.66232508]
[1743228844582,43.32077006,126.79,126.71,44.60377355]
[1743228844987,0.05224731,126.76,126.74,0.06034603]
[1743228845182,0.05224731,126.76,126.75,29.64]
[1743228845986,0.05224731,126.76,126.74,0.06034603]
[1743228847183,7.8925,126.75,126.74,0.06034603]
[1743228847386,0.05224731,126.76,126.74,0.06034603]
[1743228849088,7.94414731,126.76,126.74,0.06034603]
[1743228850385,7.8925,126.75,126.74,0.06034603]
[1743228861491,7.94434731,126.76,126.74,0.06034603]
[1743228863394,7.94434731,126.76,126.74,7.95344603]
[1743228863692,0.05224731,126.76,126.74,7.95344603]
[1743228864497,0.05224731,126.76,126.74,0.06034603]
[1743228865002,7.94444731,126.76,126.74,0.06034603]
[1743228865400,0.05224731,126.76,126.74,0.06034603]
[1743228865600,7.8925,126.75,126.74,0.06034603]
[1743228865796,0.05224731,126.76,126.74,0.06034603]
[1743228866198,7.94444731,126.76,126.74,0.06034603]
[1743228867196,7.94444731,126.76,126.74,7.95344603]
[1743228867603,7.8925,126.75,126.74,0.06034603]
[1743228868902,7.8925,126.75,126.74,29.30034603]
[1743228874809,7.94444731,126.76,126.74,29.30034603]
[1743228876309,7.8925,126.75,126.74,29.30034603]
[1743228880111,17.47523256,126.75,126.74,29.30034603]
[1743228881927,22.10380788,126.75,126.74,0.06034603]
[1743228882118,7.895,126.71,126.7,260.46]
[1743228882623,17.47773256,126.71,126.7,29.04]
[1743228882827,7.8966,126.69,126.68,29.04]
[1743228884121,7.8969,126.68,126.67,0.05447295]
[1743228884425,7.8969,126.68,126.67,29.07447295]
[1743228885226,7.8969,126.68,126.67,0.05447295]
[1743228885520,7.8969,126.68,126.67,29.07447295]
[1743228885726,7.8969,126.68,126.67,0.05447295]
[1743228888025,17.47963256,126.68,126.67,0.05447295]
[1743228889328,7.8995,126.64,126.63,28.98]
[1743228889517,9.58273256,126.66,126.63,28.98]
[1743228889722,7.8985,126.66,126.63,28.98]
[1743228890335,7.8988,126.65,126.63,28.98]
[1743228890525,7.8988,126.65,126.63,29.03513506]
[1743228891529,7.95002762,126.66,126.63,29.03513506]
[1743228891730,0.05172762,126.66,126.63,29.03513506]
[1743228892229,7.8993,126.64,126.63,29.03513506]
[1743228892533,0.05172762,126.66,126.63,29.03513506]
[1743228893134,7.8992,126.65,126.63,29.03513506]
[1743228893633,0.05172762,126.66,126.64,17.48173256]
[1743228895730,0.05172762,126.66,126.65,7.8987]
[1743228895930,27.51,126.67,126.65,7.8987]
[1743228896236,7.896,126.7,126.66,46.42033256]
[1743228896438,7.896,126.7,126.67,28.94]
[1743228896739,29.8152,126.71,126.68,17.47923256]
[1743228897036,21.97521717,126.71,126.69,9.58273256]
[1743228897236,21.97521717,126.71,126.7,38.52273256]
[1743228897433,0.05521717,126.71,126.7,38.52273256]
[1743228897629,0.05521717,126.71,126.7,46.41833256]
[1743228899031,0.05521717,126.71,126.7,38.52273256]
[1743228899842,9.58273256,126.76,126.71,9.58273256]
[1743228900042,20.413905,126.77,126.72,9.58273256]
[1743228900237,9.58273256,126.76,126.73,28.92]
[1743228900941,9.58273256,126.74,126.73,0.05873338]
[1743228901332,9.58273256,126.75,126.73,0.05873338]
[1743228902039,7.8931,126.74,126.73,0.05873338]
[1743228905941,17.47553256,126.75,126.73,0.05873338]
[1743228906242,7.8931,126.74,126.73,0.05873338]
[1743228906640,9.58273256,126.74,126.67,12.13203256]
[1743228906831,9.58273256,126.71,126.66,634.04273256]
[1743228907036,9.58273256,126.7,126.67,28.9]
[1743228907435,17.47933256,126.69,126.67,28.9]
[1743228907836,9.63513386,126.69,126.67,7.95212737]
[1743228908037,0.0524013,126.69,126.67,36.85212737]
[1743228908232,0.0524013,126.69,126.67,28.95472737]
[1743228909034,21.85,126.7,126.68,9.58273256]
[1743228909240,9.58273256,126.75,126.69,9.58273256]
[1743228909441,9.58273256,126.76,126.71,9.58273256]
[1743228909939,7.8936,126.74,126.71,9.58273256]
[1743228910339,7.95411435,126.74,126.71,9.63532902]
[1743228910940,0.06051435,126.74,126.71,0.05259646]
[1743228912141,7.95421435,126.74,126.71,0.05259646]
[1743228912839,7.95421435,126.74,126.71,7.94749646]
[1743228914347,7.95421435,126.74,126.71,0.05259646]
[1743228915439,7.95421435,126.74,126.71,7.94749646]
[1743228916648,7.95421435,126.74,126.71,15.02931069]
[1743228916649,0.06051435,126.74,126.71,15.02931069]
[1743228917044,0.06051435,126.74,126.73,22.87041423]
[1743228917244,0.06051435,126.74,126.73,51.69041423]
[1743228919450,0.06051435,126.74,126.73,36.7137]
[1743228923252,0.06051435,126.74,126.73,28.82]
[1743228925151,0.06051435,126.74,126.73,36.7137]
[1743228925956,30.43,126.76,126.73,28.82]
[1743228927059,30.48761933,126.76,126.73,28.82]
[1743228928061,30.48761933,126.76,126.74,7.8931]
[1743228928360,30.48761933,126.76,126.74,7.94857061]
[1743228928755,30.48761933,126.76,126.74,0.05547061]
[1743228929665,30.48761933,126.76,126.74,7.94847061]
[1743228930956,30.48761933,126.76,126.74,9.63525118]
[1743228931155,7.8925,126.75,126.74,0.05547061]
[1743228933665,47.9594999,126.76,126.74,0.05547061]
[1743228933869,40.0673999,126.76,126.74,0.05547061]
[1743228934767,30.48761933,126.76,126.74,0.05547061]
[1743228935264,38.37981933,126.76,126.74,0.05547061]
[1743228935861,38.37981933,126.76,126.74,7.94857061]
[1743228935862,30.48761933,126.76,126.74,7.94857061]
[1743228937272,10.78704137,126.81,126.75,9.57978057]
[1743228937471,10.78704137,126.81,126.77,9.57978057]
[1743228937771,43.1481655,126.82,126.79,7.8897]
[1743228938071,43.1481655,126.82,126.79,28.74]
[1743228938275,7.8889,126.81,126.79,28.74]
[1743228938670,7.94811727,126.81,126.79,28.79128588]
[1743228938979,0.05921727,126.81,126.79,36.68128588]
[1743228939175,0.05921727,126.81,126.79,28.79128588]
[1743228940171,0.05921727,126.81,126.8,7.8894]
[1743228941569,20.02678057,126.85,126.82,7.8878]
[1743228941869,4.62547042,126.84,126.82,7.8878]
[1743228942069,9.57978057,126.85,126.83,7.8872]
[1743228942273,12.32648057,126.86,126.82,28.7]
[1743228942678,0.0531414,126.85,126.83,0.05139521]
[1743228942875,7.9397414,126.85,126.83,0.05139521]
[1743228943074,9.63292197,126.85,126.83,0.05139521]
[1743228943475,7.8869,126.84,126.83,0.05139521]
[1743228943673,9.63292197,126.85,126.83,0.05139521]
[1743228943980,7.8869,126.84,126.83,0.05139521]
[1743228944977,17.46668057,126.84,126.83,0.05139521]
[1743228945178,22.07998941,126.84,126.77,28.68]
[1743228945372,9.57978057,126.8,126.77,28.68]
[1743228946478,9.63625473,126.8,126.77,28.73883041]
[1743228946880,7.8904,126.79,126.77,28.73883041]
[1743228947375,9.63625473,126.8,126.77,28.73883041]
[1743228947581,0.05647416,126.8,126.77,38.31861098]
[1743228947881,0.05647416,126.8,126.77,46.20931098]
[1743228948182,7.94587416,126.8,126.77,46.20931098]
[1743228948880,7.94587416,126.8,126.77,36.62953041]
[1743228949184,0.05647416,126.8,126.77,28.73883041]
[1743228949680,7.94607416,126.8,126.77,28.73883041]
[1743228949871,7.94607416,126.8,126.77,36.63003041]
[1743228950678,7.94607416,126.8,126.77,28.73883041]
[1743228950981,7.8901,126.79,126.77,28.73883041]
[1743228951182,0.05647416,126.8,126.77,28.73883041]
[1743228951375,7.94617416,126.8,126.77,36.63003041]
[1743228953188,0.05647416,126.8,126.78,7.8905]
[1743228953882,7.94587416,126.8,126.77,36.62983041]
[1743228956186,0.05647416,126.8,126.77,28.73883041]
[1743228956779,7.8903,126.79,126.77,28.73883041]
[1743228957181,0.05647416,126.8,126.77,28.73883041]
[1743228957587,7.94617416,126.8,126.77,36.62963041]
[1743228957787,0.05647416,126.8,126.77,28.73883041]
[1743228958185,0.05647416,126.8,126.78,7.8902]
[1743228958685,0.05647416,126.8,126.77,28.73883041]
[1743228958892,0.05647416,126.8,126.77,43.70189169]
[1743228959391,0.05647416,126.8,126.78,7.8906]
[1743228959592,0.05647416,126.8,126.77,43.70189169]
[1743228959784,0.05647416,126.8,126.77,28.73883041]
[1743228959984,7.8901,126.79,126.77,28.73883041]
[1743228960188,0.05647416,126.8,126.77,28.73883041]
[1743228961088,7.8906,126.78,126.77,28.73883041]
[1743228961686,7.8906,126.78,126.77,0.05883041]
[1743228962697,0.05647416,126.8,126.77,0.05883041]
[1743228963000,0.05647416,126.8,126.78,28.6]
[1743228963186,7.89,126.79,126.78,28.6]
[1743228963495,7.89,126.79,126.77,0.05883041]
[1743228963496,0.05647416,126.8,126.77,0.05883041]
[1743228964781,7.8906,126.78,126.77,0.05883041]
[1743228968096,12.5115421,126.78,126.77,0.05883041]
[1743228968294,7.8927,126.75,126.74,28.56]
[1743228972294,0.05488338,126.76,126.74,28.56]
[1743228973203,0.05488338,126.76,126.73,0.0605379]
[1743228973393,0.05488338,126.76,126.74,28.5]
[1743228973591,9.63752869,126.76,126.73,0.0605379]
[1743228975996,0.05488338,126.76,126.73,0.0605379]
[1743228976393,7.8925,126.75,126.73,0.0605379]
[1743228976791,0.05488338,126.76,126.73,0.0605379]
[1743228977196,0.05488338,126.76,126.73,9.64318321]
[1743228977395,0.05488338,126.76,126.75,9.58264531]
[1743228977591,0.05488338,126.76,126.75,38.04264531]
[1743228977994,0.05488338,126.76,126.75,45.93514531]
[1743228978593,0.05488338,126.76,126.75,38.04264531]
[1743228979402,9.63752869,126.76,126.74,28.48]
[1743228979903,7.8929,126.75,126.74,28.48]
[1743228980403,7.8929,126.75,126.73,0.0605379]
[1743228980598,7.8929,126.75,126.74,28.48]
[1743228989913,0.05488338,126.76,126.74,28.48]
[1743228992213,0.05488338,126.76,126.74,45.95574531]
[1743228992717,0.05488338,126.76,126.75,9.58264531]
[1743228994909,0.05488338,126.76,126.75,7.8925]
[1743229002535,0.05488338,126.76,126.74,28.48]
[1743229002930,7.94728338,126.76,126.74,28.48]
[1743229003235,0.05488338,126.76,126.74,28.48]
[1743229003435,0.05488338,126.76,126.73,9.64318321]
[1743229003733,9.58264531,126.75,126.73,0.0605379]
[1743229004039,17.47574531,126.74,126.73,0.0605379]
[1743229004430,22.10363706,126.74,126.73,0.0605379]
[1743229007541,14.21053706,126.74,126.69,28.26]
[1743229007737,9.58264531,126.71,126.69,28.26]
[1743229007937,9.58264531,126.72,126.69,28.26]
[1743229008238,7.8954,126.71,126.69,28.26]
[1743229008430,9.58264531,126.72,126.69,28.26]
[1743229008630,9.58264531,126.7,126.69,0.06014172]
[1743229009035,17.47824531,126.7,126.69,0.06014172]
[1743229009240,14.20867365,126.7,126.63,9.58264531]
[1743229009435,9.58264531,126.67,126.65,28.28]
[1743229009742,9.58264531,126.67,126.64,28.3]
[1743229009937,7.8977,126.67,126.64,28.3]
[1743229010440,7.94953485,126.67,126.64,28.35807421]
[1743229010842,9.63448016,126.67,126.64,0.05807421]
[1743229011032,9.58264531,126.66,126.64,0.05807421]
[1743229011434,7.8987,126.65,126.64,0.05807421]
[1743229012447,17.48134531,126.65,126.64,0.05807421]
[1743229015745,7.8987,126.65,126.64,0.05807421]
[1743229015953,7.8984,126.66,126.64,0.05807421]
[1743229016945,7.8987,126.65,126.64,0.05807421]
[1743229020454,17.48134531,126.65,126.64,0.05807421]
[1743229021051,7.9004,126.63,126.6,9.58264531]
[1743229021259,9.58264531,126.62,126.59,260.32]
[1743229021450,9.58264531,126.61,126.56,9.58264531]